fUST/lending_fUST_20240115
["ID","MTS","AMOUNT","RATE_DAILY","PERIOD"]
[311647198,1705279841404,-2184.44,0.00027397,2]
[311647200,1705279841413,-500.0,0.00027397,2]
[311647202,1705279841422,-500.0,0.00027397,2]
[311647204,1705279841431,-1210.0,0.00027397,2]
[311647206,1705279841441,-500.0,0.00027534,2]
[311647208,1705279841450,-500.0,0.00027666,2]
[311647210,1705279841459,-551.35486565,0.0002767,14]
[311647212,1705279841468,-500.0,0.0002767,2]
[311647222,1705279841552,-500.0,0.0002767,2]
[311647224,1705279841562,-500.0,0.0002767,2]
[311647226,1705279841571,-327.20580692,0.00027671,2]
[311647228,1705279841581,-500.0,0.00027671,2]
[311647230,1705279841591,-500.0,0.00027671,2]
[311647232,1705279841600,-500.0,0.00027671,2]
[311647234,1705279841610,-500.0,0.00027671,2]
[311647236,1705279841620,-500.0,0.00027671,2]
[311647238,1705279841630,-500.0,0.00027671,2]
[311647240,1705279841642,-500.0,0.00027671,2]
[311647242,1705279841650,-500.0,0.00027671,2]
[311647244,1705279841660,-500.0,0.00027671,2]
[311647246,1705279841669,-500.0,0.00027671,2]
[311647248,1705279841678,-500.0,0.00027671,2]
[311647250,1705279841688,-500.0,0.00027671,2]
[311647252,1705279841696,-701.82,0.00027671,2]
[311647254,1705279841705,-502.24841496,0.00027671,2]
[311647256,1705279841715,-500.0,0.00027671,2]
[311647258,1705279841723,-500.0,0.00027671,2]
[311647259,1705279841733,-500.0,0.00027671,2]
[311647261,1705279841742,-500.0,0.00027671,2]
[311647263,1705279841751,-500.0,0.00027671,2]
[311647265,1705279841760,-500.0,0.00027671,2]
[311647267,1705279841769,-1158.57,0.00027671,2]
[311647269,1705279841779,-500.0,0.00027671,2]
[311647271,1705279841788,-508.65,0.00027671,2]
[311647273,1705279841798,-500.0,0.00027671,2]
[311647275,1705279841807,-500.0,0.00027671,2]
[311647277,1705279841816,-462.43128384,0.00027671,2]
[311647279,1705279841825,-598.36,0.00027671,2]
[311647281,1705279841835,-500.0,0.00027671,2]
[311647283,1705279841845,-500.0,0.00027671,2]
[311647285,1705279841854,-500.0,0.00027671,2]
[311647287,1705279841864,-500.0,0.00027671,2]
[311647289,1705279841874,-273.15317203,0.00027671,2]
[311647291,1705279841890,-500.0,0.00027671,2]
[311647293,1705279841900,-500.0,0.00027671,2]
[311647295,1705279841910,-500.0,0.00027671,2]
[311647297,1705279841920,-500.0,0.00027671,2]
[311647299,1705279841930,-500.0,0.00027671,2]
[311647301,1705279841939,-500.0,0.00027671,2]
[311647303,1705279841949,-1479.61,0.00027671,2]
[311647305,1705279841958,-500.0,0.00027671,2]
[311647307,1705279841967,-1001.33,0.00027671,2]
[311647309,1705279841978,-500.0,0.00027671,2]
[311647311,1705279841988,-500.0,0.00027671,2]
[311647313,1705279841998,-500.0,0.00027671,2]
[311647315,1705279842007,-500.0,0.00027671,2]
[311647317,1705279842017,-500.0,0.00027671,2]
[311647319,1705279842027,-500.0,0.00027671,2]
[311647321,1705279842036,-807.89,0.00027671,2]
[311647323,1705279842046,-500.0,0.00027671,2]
[311647325,1705279842055,-597.80011119,0.00027671,2]
[311647327,1705279842064,-500.0,0.00027671,2]
[311647329,1705279842073,-500.0,0.00027671,2]
[311647331,1705279842083,-1015.13,0.00027671,2]
[311647333,1705279842092,-500.0,0.00027671,2]
[311647335,1705279842101,-500.0,0.00027671,2]
[311647337,1705279842110,-500.0,0.00027671,2]
[311647339,1705279842119,-500.0,0.00027671,2]
[311647341,1705279842128,-500.0,0.00027671,2]
[311647343,1705279842138,-500.0,0.00027671,2]
[311647345,1705279842151,-500.0,0.00027671,2]
[311647347,1705279842161,-500.0,0.00027671,2]
[311647349,1705279842170,-500.0,0.00027671,2]
[311647351,1705279842179,-500.0,0.00027671,2]
[311647353,1705279842190,-500.0,0.00027671,2]
[311647355,1705279842201,-500.0,0.00027671,2]
[311647357,1705279842211,-215.85448759,0.00027671,2]
[311647359,1705279842220,-500.0,0.00027671,2]
[311647361,1705279842230,-500.0,0.00027671,2]
[311647363,1705279842240,-1235.42,0.00027671,2]
[311647365,1705279842250,-2546.91,0.00027671,2]
[311647367,1705279842259,-500.0,0.00027671,2]
[311647370,1705279842269,-500.0,0.00027671,2]
[311647372,1705279842278,-649.08,0.00027671,2]
[311647373,1705279842288,-500.0,0.00027671,2]
[311647375,1705279842298,-500.0,0.00027671,2]
[311647377,1705279842307,-500.0,0.00027671,2]
[311647379,1705279842316,-500.0,0.00027671,2]
[311647381,1705279842326,-500.0,0.00027671,2]
[311647383,1705279842335,-500.0,0.00027671,2]
[311647385,1705279842345,-500.0,0.00027671,2]
[311647387,1705279842354,-500.0,0.00027671,2]
[311647390,1705279842364,-660.37,0.00027671,2]
[311647392,1705279842374,-500.0,0.00027671,2]
[311647394,1705279842383,-500.0,0.00027671,2]
[311647396,1705279842393,-1307.81,0.00027671,2]
[311647397,1705279842403,-508.23488749,0.00027671,2]
[311647400,1705279842412,-616.08704125,0.00027671,2]
[311647401,1705279842422,-500.0,0.00027671,2]
[311647403,1705279842431,-644.92,0.00027671,2]
[311647405,1705279842441,-500.0,0.00027671,2]
[311647407,1705279842451,-827.64,0.00027671,2]
[311647409,1705279842461,-1269.93,0.00027671,2]
[311647412,1705279842470,-500.0,0.00027671,2]
[311647414,1705279842479,-500.0,0.00027671,2]
[311647415,1705279842488,-1679.7,0.00027671,2]
[311647418,1705279842498,-882.75,0.00027671,2]
[311647420,1705279842507,-649.27,0.00027671,2]
[311647421,1705279842516,-500.0,0.00027671,2]
[311647423,1705279842525,-500.0,0.00027671,2]
[311647425,1705279842534,-661.41,0.00027671,2]
[311647427,1705279842543,-500.0,0.00027671,2]
[311647429,1705279842553,-500.0,0.00027671,2]
[311647432,1705279842562,-301.46968522,0.00027671,2]
[311647434,1705279842571,-1351.43,0.00027671,2]
[311647435,1705279842580,-793.4,0.00027671,2]
[311647437,1705279842589,-7296.1,0.00027671,2]
[311647439,1705279842599,-500.0,0.00027671,2]
[311647441,1705279842608,-500.0,0.00027671,2]
[311647443,1705279842617,-7391.26,0.00027671,2]
[311647446,1705279842626,-2667.62,0.00027671,2]
[311647448,1705279842639,-500.0,0.00027671,2]
[311647450,1705279842649,-3517.04,0.00027671,2]
[311647452,1705279842658,-500.0,0.00027671,2]
[311647454,1705279842667,-329.27294652,0.00027671,2]
[311647456,1705279842676,-500.0,0.00027671,2]
[311647458,1705279842685,-21371.7,0.00027671,2]
[311647460,1705279842694,-14410.57,0.00027671,2]
[311647462,1705279842703,-750.82,0.00027671,2]
[311647464,1705279842713,-247.37652584,0.00027671,2]
[311647466,1705279842722,-500.0,0.00027671,2]
[311647468,1705279842731,-500.0,0.00027671,2]
[311647470,1705279842740,-1760.19,0.00027671,2]
[311647472,1705279842750,-500.0,0.00027671,2]
[311647474,1705279842759,-500.0,0.00027671,2]
[311647476,1705279842768,-500.0,0.00027671,2]
[311647477,1705279842778,-500.0,0.00027671,2]
[311647480,1705279842787,-500.0,0.00027671,2]
[311647482,1705279842798,-4247.44,0.00027671,2]
[311647484,1705279842808,-256.16370604,0.00027671,2]
[311647486,1705279842817,-500.0,0.00027671,2]
[311647488,1705279842827,-500.0,0.00027671,2]
[311647490,1705279842836,-500.0,0.00027671,2]
[311647492,1705279842845,-500.0,0.00027671,2]
[311647494,1705279842856,-500.0,0.00027671,2]
[311647496,1705279842865,-500.0,0.00027671,2]
[311647498,1705279842875,-577.38270895,0.00027671,2]
[311647500,1705279842884,-500.0,0.00027671,2]
[311647502,1705279842899,-5437.5,0.00027671,2]
[311647504,1705279842909,-500.0,0.00027671,2]
[311647506,1705279842918,-360.84061127,0.00027671,2]
[311647508,1705279842927,-500.0,0.00027671,2]
[311647510,1705279842937,-653.96,0.00027671,2]
[311647512,1705279842947,-500.0,0.00027671,2]
[311647514,1705279842957,-500.0,0.00027671,2]
[311647516,1705279842968,-897.12,0.00027671,2]
[311647518,1705279842978,-500.0,0.00027671,2]
[311647520,1705279842987,-2332.81,0.00027671,2]
[311647522,1705279842996,-500.0,0.00027671,2]
[311647524,1705279843006,-2184.44,0.00027671,2]
[311647526,1705279843015,-500.0,0.00027671,2]
[311647528,1705279843024,-454.88676666,0.00027671,2]
[311647530,1705279843033,-1210.0,0.00027671,2]
[311647532,1705279843043,-153.0,0.00027671,2]
[311647534,1705279843052,-153.0,0.00027671,2]
[311647536,1705279843061,-153.0,0.00027671,2]
[311647538,1705279843070,-153.0,0.00027671,2]
[311647540,1705279843079,-153.0,0.00027671,2]
[311647543,1705279843089,-688.18928243,0.000277,2]
[311647546,1705279843098,-200.0,0.00027774,15]
[311647549,1705279843107,-500.0,0.00027942,2]
[311647552,1705279843116,-500.0,0.00027944,2]
[311647555,1705279843125,-500.0,0.00027944,2]
[311647558,1705279843134,-500.0,0.00027944,2]
[311647561,1705279843146,-500.0,0.00027945,2]
[311647564,1705279843155,-500.0,0.00027945,2]
[311647567,1705279843164,-357.82551127,0.00027945,2]
[311647570,1705279843173,-500.0,0.00027945,2]
[311647573,1705279843183,-701.82,0.00027945,2]
[311647576,1705279843191,-500.0,0.00027945,2]
[311647578,1705279843200,-500.0,0.00027945,2]
[311647580,1705279843209,-500.0,0.00027945,2]
[311647584,1705279843218,-1158.57,0.00027945,2]
[311647587,1705279843227,-508.65,0.00027945,2]
[311647591,1705279843236,-500.0,0.00027945,2]
[311647595,1705279843246,-598.36,0.00027945,2]
[311647601,1705279843256,-500.0,0.00027945,2]
[311647606,1705279843266,-500.0,0.00027945,2]
[311647611,1705279843275,-298.10498343,0.00027945,2]
[311647616,1705279843285,-234.14884369,0.00027945,2]
[311647620,1705279843294,-500.0,0.00027945,2]
[311647623,1705279843304,-500.0,0.00027945,2]
[311647627,1705279843313,-500.0,0.00027945,2]
[311647631,1705279843322,-1479.61,0.00027945,2]
[311647635,1705279843332,-500.0,0.00027945,2]
[311647639,1705279843341,-1001.33,0.00027945,2]
[311647643,1705279843350,-500.0,0.00027945,2]
[311647647,1705279843360,-500.0,0.00027945,2]
[311647663,1705279843369,-500.0,0.00027945,2]
[311647668,1705279843452,-500.0,0.00027945,2]
[311647671,1705279843462,-807.89,0.00027945,2]
[311647674,1705279843471,-500.0,0.00027945,2]
[311647676,1705279843480,-500.0,0.00027945,2]
[311647678,1705279843489,-1015.13,0.00027945,2]
[311647680,1705279843498,-500.0,0.00027945,2]
[311647682,1705279843507,-500.0,0.00027945,2]
[311647684,1705279843516,-500.0,0.00027945,2]
[311647686,1705279843525,-500.0,0.00027945,2]
[311647688,1705279843535,-1235.42,0.00027945,2]
[311647690,1705279843543,-2546.91,0.00027945,2]
[311647692,1705279843552,-500.0,0.00027945,2]
[311647693,1705279843561,-649.08,0.00027945,2]
[311647696,1705279843572,-500.0,0.00027945,2]
[311647698,1705279843580,-416.6322573,0.00027945,2]
[311647700,1705279843589,-500.0,0.00027945,2]
[311647702,1705279843599,-500.0,0.00027945,2]
[311647704,1705279843608,-500.0,0.00027945,2]
[311647706,1705279843617,-413.69853434,0.00027945,2]
[311647737,1705279843919,-500.0,0.00027397,2]
[311647739,1705279843928,-500.0,0.00027397,2]
[311647741,1705279843938,-500.0,0.00027671,2]
[311647743,1705279843947,-500.0,0.00027671,2]
[311647745,1705279843956,-246.67146566,0.00027945,2]
[311647747,1705279843965,-500.0,0.00027945,2]
[311647749,1705279843974,-142.82846213,0.00027945,2]
[311647751,1705279843986,-357.17153787,0.00027945,2]
[311647753,1705279843995,-1307.81,0.00027945,2]
[311647755,1705279844005,-644.92,0.00027945,2]
[311647757,1705279844014,-500.0,0.00027945,2]
[311647759,1705279844023,-827.64,0.00027945,2]
[311647761,1705279844032,-1269.93,0.00027945,2]
[311647763,1705279844041,-500.0,0.00027945,2]
[311647765,1705279844051,-500.0,0.00027945,2]
[311647767,1705279844060,-882.75,0.00027945,2]
[311647769,1705279844069,-649.27,0.00027945,2]
[311647770,1705279844078,-1679.7,0.00027945,2]
[311647772,1705279844087,-500.0,0.00027945,2]
[311647774,1705279844097,-661.41,0.00027945,2]
[311647776,1705279844106,-500.0,0.00027945,2]
[311647778,1705279844114,-1351.43,0.00027945,2]
[311647780,1705279844123,-793.4,0.00027945,2]
[311647782,1705279844132,-7296.1,0.00027945,2]
[311647784,1705279844142,-500.0,0.00027945,2]
[311647786,1705279844150,-500.0,0.00027945,2]
[311647788,1705279844159,-7391.26,0.00027945,2]
[311647790,1705279844169,-2667.62,0.00027945,2]
[311647792,1705279844178,-500.0,0.00027945,2]
[311647794,1705279844187,-3517.04,0.00027945,2]
[311647796,1705279844196,-500.0,0.00027945,2]
[311647798,1705279844205,-15028.01597225,0.00027945,2]
[311647803,1705279844256,-6343.68402775,0.00027945,2]
[311647804,1705279844265,-3308.61003446,0.00027945,2]
[311647805,1705279844276,-6464.48077092,0.00027945,2]
[311647806,1705279844288,-3606.27720025,0.00027945,2]
[311647807,1705279844299,-1031.20199437,0.00027945,2]
[311647808,1705279844307,-750.82,0.00027945,2]
[311647809,1705279844316,-500.0,0.00027945,2]
[311647810,1705279844325,-696.87040779,0.00027945,2]
[311647811,1705279844471,-500.0,0.00027397,2]
[311647812,1705279844481,-206.74962186,0.00027397,2]
[311647813,1705279844495,-293.25037814,0.00027397,2]
[311647814,1705279844504,-1063.31959221,0.00027945,2]
[311647815,1705279844513,-500.0,0.00027945,2]
[311647816,1705279844522,-500.0,0.00027945,2]
[311647817,1705279844531,-500.0,0.00027945,2]
[311647818,1705279844540,-500.0,0.00027945,2]
[311647820,1705279844548,-258.30296925,0.00027945,2]
[311648063,1705279846750,-500.0,0.00027397,2]
[311648065,1705279846759,-500.0,0.00027397,2]
[311648067,1705279846768,-600.97236985,0.00027571,2]
[311649146,1705280848543,244.368179,0.00020949,2]
[311649147,1705280863019,24900.0,0.00020895,2]
[311649149,1705280915712,1261.48286076,0.00020895,2]
[311649150,1705280924533,3833.84104042,0.00020895,2]
[311649151,1705280929719,163.04665439,0.00020895,2]
[311649152,1705280938531,3833.84104042,0.00020895,2]
[311649154,1705280954534,2725.65286533,0.00020895,2]
[311649234,1705281031895,-170.61170422,0.00021207,2]
[311649236,1705281031905,-265.05974209,0.00021208,2]
[311649238,1705281031915,-155.03720893,0.00021208,4]
[311649241,1705281031926,-360.95358001,0.00021209,2]
[311649243,1705281031936,-3126.02728391,0.0002121,2]
[311649244,1705281031945,-162.87086897,0.0002121,2]
[311649245,1705281031954,-166.7329272,0.0002121,2]
[311649246,1705281031965,-1848.07959199,0.00021221,2]
[311649247,1705281031974,-1159.2422377,0.00021709,2]
[311649248,1705281031984,-1464.33699681,0.00021948,2]
[311649249,1705281031993,-158.34001486,0.00021962,2]
[311649250,1705281032004,-292.83058016,0.00022,4]
[311649251,1705281032014,-962.47119294,0.00025238,5]
[311649252,1705281032022,-529.49758165,0.00025845,2]
[311649253,1705281032032,-153.0,0.00026849,2]
[311649254,1705281032042,-153.0,0.00026849,2]
[311649255,1705281032051,-153.0,0.00026849,2]
[311649256,1705281032061,-153.0,0.00026849,2]
[311649257,1705281032070,-153.0,0.0002726,2]
[311649258,1705281032079,-81099.53375786,0.00027292,2]
[311649259,1705281032088,-23820.6984816,0.00027293,2]
[311649260,1705281032098,-500.0,0.00027396,2]
[311649261,1705281032107,-500.0,0.00027396,2]
[311649262,1705281032116,-500.0,0.00027396,2]
[311649263,1705281032126,-457.83526305,0.00027396,2]
[311649264,1705281032136,-500.0,0.00027396,2]
[311649265,1705281032146,-500.0,0.00027396,2]
[311649266,1705281032155,-500.0,0.00027396,2]
[311649267,1705281032164,-500.0,0.00027396,2]
[311649268,1705281032174,-132.0019317,0.00027396,2]
[311649269,1705281032187,-367.9980683,0.00027396,2]
[311649270,1705281032196,-239.41948406,0.00027396,2]
[311649271,1705281032206,-293.79604819,0.00027396,2]
[311649272,1705281032215,-500.0,0.00027396,2]
[311649273,1705281032225,-368.34706948,0.00027396,2]
[311649294,1705281037889,-131.65293052,0.00027396,2]
[311649296,1705281037899,-302.73089915,0.00027396,2]
[311649298,1705281037909,-500.0,0.00027396,2]
[311649300,1705281037918,-500.0,0.00027396,2]
[311649302,1705281037927,-500.0,0.00027396,2]
[311649304,1705281037937,-299.87163799,0.00027396,2]
[311649306,1705281037946,-348.57827854,0.00027396,2]
[311649308,1705281037954,-156.6064973,0.00027396,2]
[311649310,1705281037963,-500.0,0.00027396,2]
[311649312,1705281037972,-500.0,0.00027396,2]
[311649314,1705281037981,-500.0,0.00027396,2]
[311649316,1705281037990,-500.0,0.00027396,2]
[311649318,1705281037999,-500.0,0.00027396,2]
[311649320,1705281038009,-500.0,0.00027396,2]
[311649322,1705281038018,-500.0,0.00027396,2]
[311649324,1705281038027,-500.0,0.00027396,2]
[311649326,1705281038036,-249.38310628,0.00027396,2]
[311649328,1705281038045,-500.0,0.00027396,2]
[311649330,1705281038054,-500.0,0.00027396,2]
[311649332,1705281038063,-500.0,0.00027396,2]
[311649334,1705281038073,-500.0,0.00027396,2]
[311649336,1705281038082,-500.0,0.00027396,2]
[311649337,1705281038091,-500.0,0.00027396,2]
[311649339,1705281038100,-500.0,0.00027396,2]
[311649341,1705281038109,-500.0,0.00027396,2]
[311649343,1705281038119,-406.87847412,0.00027396,2]
[311649345,1705281038129,-367.45487297,0.00027396,2]
[311649347,1705281038138,-1044.048814,0.00027396,2]
[311649349,1705281038148,-1044.048814,0.00027396,2]
[311649351,1705281038158,-1044.048814,0.00027396,2]
[311649353,1705281038167,-1044.048814,0.00027396,2]
[311649355,1705281038178,-1044.048814,0.00027396,2]
[311649357,1705281038187,-1044.048814,0.00027396,2]
[311649369,1705281038296,-1044.048814,0.00027396,2]
[311649371,1705281038306,-1044.048814,0.00027396,2]
[311649373,1705281038315,-1044.048814,0.00027396,2]
[311649375,1705281038324,-1044.048814,0.00027396,2]
[311649377,1705281038334,-1044.048814,0.00027396,2]
[311649379,1705281038343,-1044.048814,0.00027396,2]
[311649381,1705281038352,-1044.048814,0.00027396,2]
[311649383,1705281038361,-1044.048814,0.00027396,2]
[311649385,1705281038370,-1044.048814,0.00027396,2]
[311649387,1705281038380,-1044.048814,0.00027396,2]
[311649388,1705281038390,-1044.048814,0.00027396,2]
[311649390,1705281038400,-1044.048814,0.00027396,2]
[311649392,1705281038411,-226.71961852,0.00027396,2]
[311649395,1705281038422,-800.43742407,0.00027396,2]
[311649396,1705281038434,-800.43742407,0.00027396,2]
[311649398,1705281038444,-800.43742407,0.00027396,2]
[311649400,1705281038459,-800.43742407,0.00027396,2]
[311649403,1705281038470,-800.43742407,0.00027396,2]
[311649404,1705281038482,-800.43742407,0.00027396,2]
[311649406,1705281038492,-800.43742407,0.00027396,2]
[311649408,1705281038502,-1400.7654921,0.00027396,2]
[311649410,1705281038512,-500.0,0.00027397,2]
[311649412,1705281038522,-500.0,0.00027397,2]
[311649414,1705281038532,-163.85162265,0.00027397,2]
[311649416,1705281038543,-500.0,0.00027397,2]
[311649418,1705281038552,-500.0,0.00027397,2]
[311649420,1705281038562,-500.0,0.00027397,2]
[311649422,1705281038572,-504.19080815,0.00027397,2]
[311649424,1705281038582,-732.09,0.00027397,2]
[311649426,1705281038593,-500.0,0.00027397,2]
[311649429,1705281038603,-500.0,0.00027397,2]
[311649431,1705281038614,-500.0,0.00027397,2]
[311649432,1705281038624,-500.0,0.00027397,2]
[311649435,1705281038634,-500.0,0.00027397,2]
[311649437,1705281038644,-500.94425722,0.00027397,2]
[311649439,1705281038654,-500.0,0.00027397,2]
[311649441,1705281038664,-500.0,0.00027397,2]
[311649443,1705281038674,-500.0,0.00027397,2]
[311649444,1705281038684,-505.32,0.00027397,2]
[311649447,1705281038694,-500.0,0.00027397,2]
[311649448,1705281038703,-500.0,0.00027397,2]
[311649450,1705281038713,-500.0,0.00027397,2]
[311649452,1705281038723,-532.87,0.00027397,2]
[311649454,1705281038733,-500.0,0.00027397,2]
[311649456,1705281038744,-350.0,0.00027397,2]
[311649459,1705281038754,-500.0,0.00027397,2]
[311649460,1705281038764,-500.0,0.00027397,2]
[311649463,1705281038774,-376.85988352,0.00027397,2]
[311649465,1705281038784,-500.0,0.00027397,2]
[311649466,1705281038794,-500.0,0.00027397,2]
[311649468,1705281038804,-500.0,0.00027397,2]
[311649470,1705281038814,-500.0,0.00027397,2]
[311649473,1705281038824,-500.0,0.00027397,2]
[311649475,1705281038835,-500.0,0.00027397,2]
[311649476,1705281038844,-500.0,0.00027397,2]
[311649479,1705281038854,-500.0,0.00027397,2]
[311649481,1705281038865,-500.0,0.00027397,2]
[311649483,1705281038875,-500.0,0.00027397,2]
[311649485,1705281038886,-500.0,0.00027397,2]
[311649486,1705281038896,-500.0,0.00027397,2]
[311649488,1705281038906,-500.0,0.00027397,2]
[311649491,1705281038918,-500.0,0.00027397,2]
[311649492,1705281038928,-500.0,0.00027397,2]
[311649494,1705281038938,-500.0,0.00027397,2]
[311649496,1705281038949,-500.0,0.00027397,2]
[311649498,1705281038960,-500.0,0.00027397,2]
[311649500,1705281038972,-500.0,0.00027397,2]
[311649503,1705281038982,-500.0,0.00027397,2]
[311649504,1705281038992,-500.0,0.00027397,2]
[311649506,1705281039001,-500.0,0.00027397,2]
[311649509,1705281039011,-500.0,0.00027397,2]
[311649511,1705281039021,-1158.57,0.00027397,2]
[311649513,1705281039031,-500.0,0.00027397,2]
[311649515,1705281039040,-502.33023252,0.00027397,2]
[311649516,1705281039050,-500.0,0.00027397,2]
[311649518,1705281039060,-156.69701494,0.00027397,2]
[311649520,1705281039070,-355.40945307,0.00027397,2]
[311649522,1705281039080,-500.0,0.00027397,2]
[311649525,1705281039089,-500.0,0.00027397,2]
[311649527,1705281039100,-2184.44,0.00027397,2]
[311649529,1705281039109,-500.0,0.00027397,2]
[311649531,1705281039120,-500.0,0.00027397,2]
[311649533,1705281039130,-1000.0,0.00027397,2]
[311649535,1705281039140,-500.0,0.00027397,2]
[311649537,1705281039149,-500.0,0.00027397,2]
[311649539,1705281039158,-500.0,0.00027397,2]
[311649541,1705281039168,-500.0,0.00027397,2]
[311649543,1705281039178,-516.89721393,0.00027397,2]
[311649545,1705281039188,-1000.0,0.00027397,2]
[311649547,1705281039198,-500.0,0.00027397,2]
[311649548,1705281039208,-500.0,0.00027397,2]
[311649550,1705281039217,-500.0,0.00027397,2]
[311649552,1705281039227,-225.43281937,0.00027397,2]
[311649554,1705281039237,-500.0,0.00027397,2]
[311649556,1705281039246,-1358.21,0.00027397,2]
[311649558,1705281039256,-500.0,0.00027397,2]
[311649560,1705281039266,-500.0,0.00027397,2]
[311649562,1705281039275,-500.0,0.00027397,2]
[311649564,1705281039285,-500.0,0.00027397,2]
[311649566,1705281039295,-500.0,0.00027397,2]
[311649569,1705281039304,-500.0,0.00027397,2]
[311649571,1705281039314,-500.0,0.00027397,2]
[311649573,1705281039324,-500.0,0.00027397,2]
[311649576,1705281039334,-507.33239193,0.00027397,2]
[311649579,1705281039344,-500.0,0.00027397,2]
[311649581,1705281039353,-500.0,0.00027397,2]
[311649583,1705281039363,-500.0,0.00027397,2]
[311649585,1705281039372,-502.68826991,0.00027397,2]
[311649587,1705281039383,-1606.58,0.00027397,2]
[311649589,1705281039392,-500.0,0.00027397,2]
[311649591,1705281039401,-570.14526837,0.00027397,2]
[311649593,1705281039410,-500.0,0.00027397,2]
[311649595,1705281039419,-531.03698778,0.00027397,2]
[311649596,1705281039429,-500.0,0.00027397,2]
[311649598,1705281039438,-626.85,0.00027397,2]
[311649600,1705281039453,-401.34866574,0.00027397,2]
[311649603,1705281039464,-500.0,0.00027397,2]
[311649605,1705281039474,-500.0,0.00027397,2]
[311649606,1705281039485,-538.47917633,0.00027397,2]
[311649609,1705281039495,-500.0,0.00027397,2]
[311649610,1705281039504,-500.0,0.00027397,2]
[311649612,1705281039514,-500.0,0.00027397,2]
[311649614,1705281039525,-528.99719746,0.00027397,2]
[311649617,1705281039537,-500.0,0.00027397,2]
[311649618,1705281039546,-510.02881008,0.00027397,2]
[311649620,1705281039556,-500.0,0.00027397,2]
[311649622,1705281039564,-972.6,0.00027397,2]
[311649624,1705281039574,-500.0,0.00027397,2]
[311649625,1705281039583,-500.0,0.00027397,2]
[311649626,1705281039593,-621.30815184,0.00027397,2]
[311649627,1705281039602,-510.88502478,0.00027397,2]
[311649628,1705281039611,-500.0,0.00027397,2]
[311649629,1705281039620,-627.38641808,0.00027397,2]
[311649630,1705281039629,-500.0,0.00027397,2]
[311649631,1705281039638,-500.0,0.00027397,2]
[311649632,1705281039646,-500.0,0.00027397,2]
[311649633,1705281039655,-500.0,0.00027397,2]
[311649634,1705281039664,-500.0,0.00027397,2]
[311649635,1705281039673,-500.0,0.00027397,2]
[311649636,1705281039682,-500.0,0.00027397,2]
[311649637,1705281039692,-500.0,0.00027397,2]
[311649638,1705281039700,-500.0,0.00027397,2]
[311649639,1705281039709,-807.89,0.00027397,2]
[311649640,1705281039718,-500.0,0.00027397,2]
[311649641,1705281039727,-500.0,0.00027397,2]
[311649642,1705281039736,-500.0,0.00027397,2]
[311649643,1705281039745,-1139.15,0.00027397,2]
[311649644,1705281039754,-500.0,0.00027397,2]
[311649645,1705281039764,-500.0,0.00027397,2]
[311649646,1705281039773,-500.0,0.00027397,2]
[311649647,1705281039782,-505.11,0.00027397,2]
[311649648,1705281039792,-500.0,0.00027397,2]
[311649649,1705281039801,-500.0,0.00027397,2]
[311649650,1705281039810,-245.26060203,0.00027397,2]
[311649651,1705281039819,-500.0,0.00027397,2]